[Event "Serbian-ch Semifinal 2024"]
[Site "Paracin"]
[Date "2024.02.11"]
[Round "9.8"]
[White "Djordjevic, Vuk"]
[Black "Perunovic, Miodrag"]
[Result "1-0"]
[ECO "A45"]
[WhiteElo "2367"]
[BlackElo "2373"]
[Annotator "TA"]
[PlyCount "149"]
[EventDate "2024.02.04"]
[EventType "swiss"]
[EventCountry "SRB"]
[SourceTitle "playchess.com"]
[Source "ChessBase"]
[SourceQuality "1"]
[TimeControl "40/5400+30:1800+30"]

{[%evp 61,149,160,164,169,165,166,725,699,684,237,221,176,176,171,170,170,171,171,182,192,253,254,246,221,245,209,243,243,286,285,4134,4134,1102,337,275,275,450,472,457,407,351,336,336,336,708,700,700,651,651,643,700,583,654,536,793,793,798,778,29944,29947,29942,12851,12838,12847,29948,12822,12821,12823,29943,12851,29958,29960,29961,29964,29954,29960,29961,29963,29963,29962,29963,29964,29962,29963,29959,29953,29947,11480,29978,29979]} 1. d4 {[%emt 0:01:59]} Nf6 {[%emt 0:00:09]} 2. Bg5 {[%emt 0:00:11]} Ne4 {[%emt 0:00:48]} 3. Bf4 {[%emt 0:00:20]} c5 {[%emt 0:00:09]} 4. f3 {[%emt 0:00:24]} Qa5+ {[%emt 0:00:11]} 5. c3 {[%emt 0:00:16]} Nf6 {[%emt 0:00:08]} 6. d5 {[%emt 0:00:17]} e6 {[%emt 0:00:08]} 7. e4 {[%emt 0:00:26]} exd5 {[%emt 0:00:09]} 8. exd5 {[%emt 0:00:19]} d6 {[%emt 0:00:09]} 9. a4 {[%emt 0:09:20]} Be7 {[%emt 0:00:21]} 10. Na3 {[%emt 0:00:18]} O-O {[%emt 0:00:10]} 11. Nc4 {[%emt 0:00:44]} Qd8 {[%emt 0:00:03]} 12. Qd2 {[%emt 0:02:34]} Re8 {[%emt 0:01:12]} 13. Kf2 {[%emt 0:05:46]} Na6 {[%emt 0:00:27]} 14. Na3 {[%emt 0:14:07]} Bf8 {[%emt 0:12:47]} 15. Bc4 {[%emt 0:14:18]} Nc7 {[%emt 0:08:53]} 16. Ne2 {[%emt 0:02:44]} b6 {[%emt 0:03:16]} 17. Nb5 {[%emt 0:05:11]} a6 {[%emt 0:00:58]} 18. Nxc7 {[%emt 0:00:15]} Qxc7 {[%emt 0:00:02]} 19. Bg5 {[%emt 0:07:11]} Nd7 {[%emt 0:01:55]} 20. Ng3 {[%emt 0:01:18]} Ne5 {[%emt 0:05:13]} 21. Be2 {[%emt 0:00:29]} Rb8 {[%emt 0:01:15]} 22. b4 {[%emt 0:05:08]} b5 {[%emt 0:03:52]} 23. axb5 {[%emt 0:05:49]} axb5 {[%emt 0:00:22]} 24. Be3 {[%emt 0:00:05]} cxb4 {[%emt 0:10:26]} 25. cxb4 {[%emt 0:00:22]} Nc4 {[%emt 0:00:11]} 26. Rhc1 {[%emt 0:03:05]} Bd7 {[%emt 0:00:38]} 27. Qd4 {[%emt 0:01:57]} g6 {[%emt 0:09:04]} 28. Ra7 {[%emt 0:01:18]} Rb7 {[%emt 0:09:15]} 29. Bxc4 {[%emt 0:05:13]} bxc4 {[%emt 0:10:01]} 30. Rxb7 {[%emt 0:06:09]} Qxb7 {[%emt 0:00:10]} 31. Ne4 {[%emt 0:00:35]} Bg7 {[%emt 0:23:38] [#]} 32. Nf6+ $1 {[%emt 0:00:19]} (32. Qxc4 Bb5 33. Qa2 (33. Nxd6 $2 Qe7 $19) 33... Be5 $16) 32... Bxf6 {[%emt 0:00:00]} 33. Qxf6 {[%emt 0:00:14]} Qxd5 $2 {[%emt 0:00:00]} ({And not} 33... Qxb4 34. Bh6 Qb6+ 35. Kg3) (33... Rxe3 34. Kxe3 Qxb4) 34. Bd4 $18 {[%emt 0:00:27]} Re5 {[%emt 0:00:00]} 35. Bxe5 $2 {[%emt 0:00:36]} (35. Rd1 Ba4 36. Bxe5 Qxe5 37. Qxe5 (37. Rxd6 Qxf6 38. Rxf6 c3 $18) (37. Qxd6 Qb2+ 38. Rd2 Qc3 $18) 37... dxe5 38. Ra1) 35... dxe5 $18 {[%emt 0:00:00]} 36. Qg5 {[%emt 0:03:19]} Qd4+ {[%emt 0:00:00]} 37. Qe3 {[%emt 0:02:53]} Qb2+ {[%emt 0:00:00]} 38. Kg1 {[%emt 0:01:30]} Qxb4 {[%emt 0:00:00]} 39. Qxe5 {[%emt 0:00:17]} Qb6+ {[%emt 0:01:42]} 40. Kh1 {[%emt 0:00:32]} f6 {[%emt 0:01:40]} (40... Qb5 $142 41. Qxb5 Bxb5) 41. Qe7 $18 {[%emt 0:07:08]} Qe6 {[%emt 0:01:53]} 42. Qc5 {[%emt 0:00:24]} Kg7 {[%emt 0:05:33]} 43. Kg1 {[%emt 0:03:34]} Bb5 {[%emt 0:03:04]} 44. Kf2 {[%emt 0:02:36]} (44. Qxb5 $2 {loses.} Qe3+ 45. Kf1 Qxc1+ 46. Ke2 Qc2+ 47. Kf1 Qd1+ 48. Kf2 c3 $19) 44... Qd7 {[%emt 0:12:20]} 45. Re1 {[%emt 0:02:08]} Kh6 $2 {[%emt 0:02:37]} (45... Kf7 46. Kg1 g5) 46. Qf8+ $18 {[%emt 0:02:53]} Qg7 {[%emt 0:00:01]} 47. Qxg7+ $2 {[%emt 0:00:44]} (47. Qd8) 47... Kxg7 $18 {[%emt 0:00:01]} 48. Re7+ {[%emt 0:00:07]} Kh6 $2 {[%emt 0:00:13]} (48... Kg8 {was necessary.} 49. Rc7 h5) 49. Rc7 $18 {[%emt 0:00:54]} g5 {[%emt 0:00:01]} 50. Rc5 {[%emt 0:01:58]} Bd7 {[%emt 0:00:02]} 51. Rxc4 {[%emt 0:00:06]} Kg6 {[%emt 0:00:05]} 52. Ke3 {[%emt 0:06:59]} h6 $2 {[%emt 0:02:38]} (52... Bb5) 53. Rc7 $18 {[%emt 0:00:40]} Bb5 {[%emt 0:00:36]} 54. Rc5 {[%emt 0:01:20]} Bf1 {[%emt 0:00:48]} 55. Rc2 {[%emt 0:00:50]} Bb5 {[%emt 0:00:15]} 56. Ke4 {[%emt 0:00:38]} Ba6 {[%emt 0:00:42]} 57. Rb2 {[%emt 0:01:54]} h5 {[%emt 0:00:48]} 58. g3 {[%emt 0:01:27]} Bc4 {[%emt 0:02:19]} 59. h4 {[%emt 0:00:51]} gxh4 {[%emt 0:00:23]} 60. gxh4 {[%emt 0:00:06]} Be6 {[%emt 0:00:05]} 61. Rb5 {[%emt 0:02:25]} (61. Kd4 $142 Kf5 62. Rb4 Bf7 63. Kc5 Ke6 64. Rb6+ Ke5 65. f4+ Kf5 66. Kd6) 61... Bd7 {[%emt 0:00:44]} 62. Rc5 {[%emt 0:00:20]} Bh3 {[%emt 0:00:12]} 63. Kd4 {[%emt 0:02:50]} (63. Rc1 $142 Be6 64. Rg1+ Kf7 65. Rb1 Kg6 66. Rg1+ Kf7 67. Kd4 Bh3 68. Kd5) 63... Bg2 $18 {[%emt 0:00:17]} 64. Ke3 {[%emt 0:00:10]} Bh3 {[%emt 0:00:02]} 65. Ke4 {[%emt 0:00:03]} Bg2 {[%emt 0:00:49]} 66. Rc1 {[%emt 0:00:13]} Bh3 {[%emt 0:00:08]} 67. Rg1+ {[%emt 0:00:08]} Kf7 {[%emt 0:00:15]} 68. Kd5 {[%emt 0:00:06]} Bc8 {[%emt 0:00:50]} 69. Kd6 {[%emt 0:01:19]} Bb7 {[%emt 0:01:35]} 70. Rg3 {[%emt 0:00:55]} Ba8 {[%emt 0:00:57]} 71. f4 {[%emt 0:00:39]} Be4 {[%emt 0:00:01]} 72. Rc3 {[%emt 0:00:45]} Kg6 {[%emt 0:02:52]} 73. Rc5 {[%emt 0:00:05]} Bf5 {[%emt 0:00:20]} 74. Ke7 {[%emt 0:00:39]} (74. Ra5 $142 Bh3 75. Ke7 Bc8 76. Ra8 Bg4 77. Rf8 Kf5 78. Rxf6+ Ke4 79. Kf7) 74... Be4 {[%emt 0:00:01]} 75. Ke6 {[%emt 0:01:51]} 1-0

[Event "Serbian-ch Semifinal 2024"]
[Site "Paracin"]
[Date "2024.02.11"]
[Round "9.9"]
[White "Jocev, Milan"]
[Black "Todorovic, Goran N"]
[Result "1/2-1/2"]
[ECO "E04"]
[WhiteElo "2376"]
[BlackElo "2263"]
[Annotator "RC"]
[PlyCount "82"]
[EventDate "2024.02.04"]
[EventType "swiss"]
[EventCountry "SRB"]
[SourceTitle "playchess.com"]
[Source "ChessBase"]
[SourceQuality "1"]
[TimeControl "40/5400+30:1800+30"]

1. d4 {[%emt 0:00:03]} Nf6 {[%emt 0:01:04]} 2. c4 {[%emt 0:00:13]} e6 {[%emt 0:00:11]} 3. g3 {[%emt 0:00:07]} d5 {[%emt 0:00:21]} 4. Nf3 {[%emt 0:00:11]} dxc4 {[%emt 0:00:11]} 5. Bg2 {[%emt 0:00:06]} a6 {[%emt 0:00:47]} 6. O-O {[%emt 0:01:37]} b5 {[%emt 0:03:19]} 7. Ne5 {[%emt 0:03:39]} c6 {[%emt 0:00:28]} 8. Nxc6 {[%emt 0:01:25]} Qb6 {[%emt 0:01:08]} 9. Ne5 {[%emt 0:05:57]} Bb7 {[%emt 0:00:14]} 10. e4 {[%emt 0:01:52]} Nxe4 {[%emt 0:20:02]} 11. Re1 {[%emt 0:04:16]} Nf6 {[%emt 0:04:51]} 12. a4 {[%emt 0:02:41]} Bb4 {[%emt 0:24:13]} 13. Nc3 {[%emt 0:01:17]} Bxg2 {[%emt 0:04:22]} 14. Kxg2 {[%emt 0:00:06]} Ra7 {[%emt 0:01:04]} 15. Bg5 {[%emt 0:07:13]} Bxc3 {[%emt 0:02:15]} 16. bxc3 {[%emt 0:00:09]} Nd5 {[%emt 0:00:19]} 17. axb5 {[%emt 0:15:02]} axb5 {[%emt 0:01:02]} 18. Rxa7 {[%emt 0:06:05]} Qxa7 {[%emt 0:00:11]} 19. Qb1 {[%emt 0:01:14]} Qb6 {[%emt 0:06:45]} 20. Kg1 {[%emt 0:02:53]} O-O {[%emt 0:00:36]} 21. Bd2 {[%emt 0:00:47]} Rd8 {[%emt 0:01:56]} 22. Re4 {[%emt 0:02:40]} Nc6 {[%emt 0:02:28]} 23. Rh4 {[%emt 0:08:58]} f5 {[%emt 0:00:36]} 24. Nf3 {[%emt 0:00:06]} b4 {[%emt 0:02:28]} 25. Qe1 {[%emt 0:01:21]} Re8 {[%emt 0:01:01]} 26. cxb4 {[%emt 0:00:43]} Ncxb4 {[%emt 0:01:27]} 27. Ne5 {[%emt 0:05:02]} Rc8 {[%emt 0:07:15]} 28. Qe2 {[%emt 0:01:09]} Qc7 {[%emt 0:05:39]} 29. Nxc4 {[%emt 0:06:21]} Qxc4 {[%emt 0:04:22]} 30. Qxe6+ {[%emt 0:00:07]} Kh8 {[%emt 0:03:33]} 31. Qxf5 {[%emt 0:04:46]} Qc2 {[%emt 0:00:09]} 32. Rxh7+ {[%emt 0:00:40]} Kg8 {[%emt 0:00:13]} 33. Qh3 {[%emt 0:01:00]} Qb1+ {[%emt 0:00:43]} 34. Kg2 {[%emt 0:00:12]} Qe4+ {[%emt 0:00:09]} 35. Kg1 {[%emt 0:00:35]} Qb1+ {[%emt 0:00:11]} 36. Kg2 {[%emt 0:00:05]} Qe4+ {[%emt 0:00:08]} 37. Kg1 {[%emt 0:00:06]} Qb1+ {[%emt 0:02:39]} 38. Kg2 {[%emt 0:00:05]} Qe4+ {[%emt 0:00:05]} 39. Kg1 {[%emt 0:00:05]} Qb1+ {[%emt 0:00:49]} 40. Kg2 {[%emt 0:00:05]} Qe4+ {[%emt 0:00:21]} 41. Kg1 {[%emt 0:30:06]} Qb1+ {[%emt 0:04:12]} 1/2-1/2

[Event "Serbian-ch Semifinal 2024"]
[Site "Paracin"]
[Date "2024.02.11"]
[Round "9.10"]
[White "Sedlak, Nikola"]
[Black "Milosevic, Milos"]
[Result "1/2-1/2"]
[ECO "B24"]
[WhiteElo "2463"]
[BlackElo "2388"]
[Annotator "TA"]
[PlyCount "26"]
[EventDate "2024.02.04"]
[EventType "swiss"]
[EventCountry "SRB"]
[SourceTitle "playchess.com"]
[Source "ChessBase"]
[SourceQuality "1"]
[TimeControl "40/5400+30:1800+30"]

{[%evp 18,26,-18,-21,0,0,-12,-39,-32,-23,-29]} 1. e4 {[%emt 0:01:12]} e6 {[%emt 0:06:14]} 2. d3 {[%emt 1:30:18]} d5 {[%emt 0:00:04]} 3. Nc3 {[%emt 0:00:00]} Nf6 {[%emt 0:00:47]} 4. e5 {[%emt 0:00:00]} Nfd7 {[%emt 0:00:04]} 5. f4 {[%emt 0:00:00]} c5 {[%emt 0:00:03]} 6. Nf3 {[%emt 0:00:00]} Nc6 {[%emt 0:00:05]} 7. g3 {[%emt 0:00:00]} b5 {[%emt 0:00:05][%cal Bb7b5,Bb5b4][%mdl 32]} 8. Bg2 {[%emt 0:00:00]} b4 {[%emt 0:00:23]} 9. Ne2 {[%emt 0:00:00]} Be7 {[%emt 0:01:03]} 10. O-O {[%emt 0:00:00]} O-O {[%emt 0:00:04]} 11. a3 {[%emt 0:00:00]} bxa3 {[%emt 0:02:59]} 12. b3 {[%emt 0:00:00]} a5 {[%emt 0:01:15][%cal Ba7a5,Ba5a4][%mdl 32]} 13. Bxa3 {[%emt 0:00:00]} a4 {[%emt 0:00:10] White did not feel at home in the position after the opening.   Weighted Error Value: White=0.08 (flawless) /Black=0.05 (flawless) .  Inaccurate:     	White=1     	---        OK:         	White=1     	Black=3} 1/2-1/2

[Event "Serbian-ch Semifinal 2024"]
[Site "Paracin"]
[Date "2024.02.11"]
[Round "9.11"]
[White "Cuzovic, Ognjen"]
[Black "Arsovic, Zoran"]
[Result "0-1"]
[ECO "E90"]
[WhiteElo "2068"]
[BlackElo "2362"]
[Annotator "TA"]
[PlyCount "112"]
[EventDate "2024.02.04"]
[EventType "swiss"]
[EventCountry "SRB"]
[SourceTitle "playchess.com"]
[Source "ChessBase"]
[SourceQuality "1"]
[TimeControl "40/5400+30:1800+30"]

{[%evp 11,112,54,60,27,31,3,111,18,28,16,28,20,41,38,27,-68,-71,-79,-64,-79,-79,-74,-72,-122,-21,-24,-30,-36,-31,-45,-35,-35,-31,-54,-35,-40,-18,-10,0,-8,-4,-14,0,0,0,-23,0,-44,-36,-38,-29,-38,-33,-75,-65,-75,-61,-73,-80,-82,-80,-94,-87,-141,-140,-144,-126,-119,-121,-109,-74,-228,-240,-331,-365,-370,-378,-389,-389,-344,-379,-341,-337,-310,-298,-290,-268,-406,-367,-518,-514,-495,-485,-708,-708,-700,-687,-684,-665,-1029,-708,-1045,-1020]} 1. d4 {[%emt 0:08:36]} Nf6 {[%emt 0:01:14]} 2. c4 {[%emt 0:00:09]} d6 {[%emt 0:00:28]} 3. Nf3 {[%emt 0:00:19]} Nbd7 {[%emt 0:03:42]} 4. Nc3 {[%emt 0:01:22]} e5 {[%emt 0:00:23]} 5. e4 {[%emt 0:01:32]} g6 {[%emt 0:00:24]} 6. Be2 {[%emt 0:00:31]} Bg7 {[%emt 0:00:26]} 7. Bg5 {[%emt 0:00:47][%cal Of3e5]} h6 {[%emt 0:01:32]} 8. Bh4 {[%emt 0:02:27]} a5 {[%emt 0:10:09]} (8... g5 $11 {remains equal.} 9. Bg3 Nh5) 9. d5 {[%emt 0:04:48]} ({Better is} 9. dxe5 $16 dxe5 10. Nxe5) 9... Nc5 {[%emt 0:07:52][%cal Og6g5]} 10. Nd2 {[%emt 0:00:13]} Bd7 {[%emt 0:02:12]} 11. O-O {[%emt 0:01:19]} g5 {[%emt 0:06:21]} 12. Bg3 {[%emt 0:00:06]} h5 {[%emt 0:00:07]} 13. h4 {[%emt 0:06:03]} (13. f3 $1 $11) 13... Ng4 {[%emt 0:23:24]} 14. Nf3 {[%emt 0:06:56]} Bf6 {[%emt 0:02:44]} 15. hxg5 {[%emt 0:04:47]} Bxg5 {[%emt 0:00:45]} 16. Nxg5 {[%emt 0:00:53]} Qxg5 {[%emt 0:00:07]} 17. f4 {[%emt 0:01:30]} ({White should play} 17. Qc1 Qxc1 18. Raxc1) 17... Qe7 {[%emt 0:09:07]} (17... exf4 $17 18. Bxf4 Qg7) 18. fxe5 $11 {[%emt 0:03:45]} Nxe5 {[%emt 0:00:31]} 19. Bxe5 {[%emt 0:04:29]} Qxe5 {[%emt 0:03:38]} 20. Qd2 {[%emt 0:01:33]} Ke7 {[%emt 0:05:36][%cal Oa8g8]} (20... Nxe4 21. Nxe4 Qxe4 22. Rf4 $14) 21. Qf4 {[%emt 0:01:54]} f6 {[%emt 0:00:20]} 22. Rf2 {[%emt 0:01:35]} Rag8 {[%emt 0:06:31] Active counter play!} 23. Raf1 {[%emt 0:06:14]} Qxf4 {[%emt 0:01:56]} 24. Rxf4 {[%emt 0:00:07]} Rh6 {[%emt 0:02:30]} 25. Nd1 {[%emt 0:05:47]} Rg5 {[%emt 0:01:09]} 26. b3 {[%emt 0:10:01]} Re5 {[%emt 0:01:29]} 27. Nc3 {[%emt 0:01:47]} Rg6 {[%emt 0:02:10]} 28. Kh2 {[%emt 0:00:55]} c6 {[%emt 0:00:51]} 29. Bd1 {[%emt 0:01:02]} Reg5 {[%emt 0:00:31] [#] ...Nd3 is the strong threat.} 30. Bf3 {[%emt 0:05:40]} Nd3 {[%emt 0:00:32]} 31. Rh4 {[%emt 0:00:07]} Ne5 {[%emt 0:00:10]} 32. Rf2 {[%emt 0:00:52]} Rg7 $36 {[%emt 0:03:25][%mdl 2048] White must now prevent ...Ng6. Black is pushing.} 33. Kh1 {[%emt 0:05:23]} Ng6 {[%emt 0:01:20]} 34. Rh2 {[%emt 0:00:07]} (34. Rxh5 $2 {loses.} Rxh5+ 35. Bxh5 Rh7 $19) 34... h4 {[%emt 0:00:17]} 35. Ne2 {[%emt 0:00:44]} c5 {[%emt 0:00:33]} 36. Rf1 {[%emt 0:00:49]} b5 {[%emt 0:00:49]} 37. Nc3 {[%emt 0:01:06]} ({White should try} 37. cxb5 Bxb5 38. Ra1) 37... bxc4 $17 {[%emt 0:01:09]} 38. bxc4 {[%emt 0:00:13]} Rh7 {[%emt 0:01:27]} 39. Nd1 {[%emt 0:01:18][%cal Og2g4]} Ne5 {[%emt 0:00:00]} 40. Ne3 {[%emt 0:05:43][%cal Og2g4]} Rh8 {[%emt 0:01:59]} 41. Be2 $2 {[%emt 0:31:00] This move loses the game for White.} (41. g4 $17) 41... Rg3 $19 {[%emt 0:02:48]} 42. Bf3 {[%emt 0:00:00]} h3 {[%emt 0:02:06] [#] aiming for ...hxg2+.} 43. Nf5+ {[%emt 0:00:00]} Bxf5 {[%emt 0:00:56]} 44. exf5 {[%emt 0:00:00]} hxg2+ {[%emt 0:03:47]} ({Resist} 44... Rh4 45. Rc1 $19) 45. Bxg2 {[%emt 0:00:00]} Rxh2+ {[%emt 0:00:18]} 46. Kxh2 {[%emt 0:00:00][%mdl 4096] Endgame. KRB-KRN} Rc3 {[%emt 0:00:29]} 47. Rb1 {[%emt 0:00:00]} Ng4+ {[%emt 0:00:33]} 48. Kg1 {[%emt 0:00:00]} Rxc4 {[%emt 0:00:11]} 49. Rb7+ {[%emt 0:00:00]} (49. Kf1 {was called for.}) 49... Kd8 {[%emt 0:00:28] Strongly threatening ...Rc1+.} 50. Bf3 {[%emt 0:00:00]} (50. Rb1 $142) 50... Ne5 {[%emt 0:01:32] Black is clearly winning.} 51. Be2 {[%emt 0:00:00]} Rc2 {[%emt 0:01:52][%csl LRa2,LRe2]} 52. Ba6 {[%emt 0:00:00]} (52. Kf2 $142) 52... c4 {[%emt 0:03:14]} 53. Rb8+ {[%emt 0:00:00]} Ke7 {[%emt 0:00:20]} 54. Rb7+ {[%emt 0:00:00]} Kf8 {[%emt 0:00:18]} 55. Rb6 {[%emt 0:00:00]} Rd2 {[%emt 0:01:45]} 56. Rxd6 {[%emt 0:00:00]} c3 {[%emt 0:00:50] Weighted Error Value: White=0.44/Black=0.20 (precise) .  Mistake:       	White=8     	Black=2      Inaccurate:     	White=4     	Black=1      OK:         	White=16    	Black=21     Best:        	White=3     	Black=3} (56... Rxa2 57. Rxf6+ Kg7 58. Rc6 Nxc6 59. dxc6 $19) 0-1